bitfinex/quotes_SOLUSD_20230116
["timestamp","ask_amount","ask_price","bid_price","bid_amount"]
[1673847028262,20.0,23.357,23.336,37.0]
[1673847031548,20.0,23.357,23.336,17.0]
[1673847032478,20.0,23.357,23.336,37.0]
[1673847034054,20.0,23.358,23.336,37.0]
[1673847034671,20.0,23.358,23.34,12.49]
[1673847034887,119.8745,23.366,23.341,17.0]
[1673847034888,20.0,23.36,23.341,17.0]
[1673847035526,20.0,23.36,23.342,20.0]
[1673847035728,20.0,23.36,23.343,17.0]
[1673847039089,20.0,23.36,23.342,37.0]
[1673847039524,20.0,23.36,23.342,17.0]
[1673847040261,20.0,23.36,23.342,37.0]
[1673847041212,20.0,23.36,23.341,109.9364]
[1673847041630,20.0,23.36,23.342,20.0]
[1673847042555,20.0,23.36,23.343,17.0]
[1673847047308,20.0,23.36,23.342,37.0]
[1673847050461,20.0,23.36,23.343,20.0]
[1673847050671,20.0,23.36,23.344,17.0]
[1673847053201,119.8745,23.366,23.344,17.0]
[1673847054873,119.8745,23.366,23.341,109.9364]
[1673847055083,20.0,23.359,23.341,109.9364]
[1673847055301,20.0,23.358,23.341,109.9364]
[1673847055833,20.0,23.36,23.342,20.0]
[1673847056232,20.0,23.36,23.343,17.0]
[1673847058761,20.0,23.36,23.341,109.9364]
[1673847058996,20.0,23.359,23.341,109.9364]
[1673847059184,20.0,23.357,23.341,109.9364]
[1673847060355,20.0,23.358,23.342,17.0]
[1673847060565,20.0,23.358,23.333,20.0]
[1673847060882,17.0,23.357,23.331,111.9661]
[1673847061098,40.0,23.356,23.331,111.9661]
[1673847061302,17.0,23.355,23.331,111.9661]
[1673847061614,12.41,23.35,23.331,111.9661]
[1673847061810,20.0,23.349,23.331,111.9661]
[1673847062142,20.0,23.348,23.332,17.0]
[1673847062349,130.8148,23.348,23.33,12.49]
[1673847062547,20.0,23.347,23.322,110.9545]
[1673847062762,20.0,23.347,23.322,222.9206]
[1673847062967,20.0,23.346,23.322,222.9206]
[1673847063192,20.0,23.345,23.322,222.9206]
[1673847063409,20.0,23.345,23.322,111.9661]
[1673847063410,17.0,23.344,23.322,111.9661]
[1673847063593,20.0,23.343,23.322,111.9661]
[1673847064014,20.0,23.342,23.322,111.9661]
[1673847064222,20.0,23.341,23.322,111.9661]
[1673847064667,20.0,23.341,23.323,17.0]
[1673847066228,20.0,23.343,23.323,17.0]
[1673847066445,20.0,23.343,23.323,37.0]
[1673847066862,20.0,23.343,23.323,17.0]
[1673847067078,12.49,23.34,23.323,17.0]
[1673847067297,20.0,23.338,23.322,111.9661]
[1673847070022,20.0,23.338,23.32,12.49]
[1673847070231,20.0,23.337,23.321,17.0]
[1673847070449,20.0,23.336,23.321,17.0]
[1673847070657,20.0,23.335,23.321,17.0]
[1673847070870,20.0,23.334,23.321,17.0]
[1673847071080,20.0,23.333,23.321,17.0]
[1673847071394,20.0,23.333,23.314,21.46196354]
[1673847071587,20.0,23.332,23.31,128.46]
[1673847071805,20.0,23.33,23.31,149.92196354]
[1673847072004,20.0,23.329,23.31,128.46]
[1673847072216,20.0,23.328,23.31,128.46]
[1673847072866,20.0,23.328,23.311,17.0]
[1673847073267,20.0,23.328,23.31,128.46]
[1673847075384,20.0,23.328,23.311,17.0]
[1673847075577,20.0,23.329,23.311,17.0]
[1673847076327,37.0,23.328,23.301,20.0]
[1673847076538,37.0,23.328,23.303,20.0]
[1673847076859,37.0,23.328,23.305,20.0]
[1673847077597,37.0,23.328,23.306,17.0]
[1673847079066,20.0,23.327,23.305,17.0]
[1673847079258,20.0,23.326,23.303,37.0]
[1673847079468,20.0,23.325,23.303,37.0]
[1673847081273,20.0,23.324,23.303,17.0]
[1673847081688,20.0,23.323,23.303,17.0]
[1673847082835,119.3061,23.322,23.303,17.0]
[1673847083049,20.0,23.32,23.303,17.0]
[1673847083367,20.0,23.319,23.303,17.0]
[1673847083905,20.0,23.32,23.303,17.0]
[1673847084116,20.0,23.32,23.302,109.5444]
[1673847084328,20.0,23.319,23.302,109.5444]
[1673847084725,20.0,23.32,23.302,109.5444]
[1673847085147,20.0,23.321,23.302,109.5444]
[1673847085484,20.0,23.321,23.303,17.0]
[1673847085887,12.49,23.33,23.303,17.0]
[1673847086096,12.49,23.33,23.31,12.43]
[1673847086308,12.49,23.33,23.311,17.0]
[1673847087254,20.0,23.329,23.311,17.0]
[1673847087898,20.0,23.328,23.305,20.0]
[1673847088102,20.0,23.328,23.306,17.0]
[1673847088293,20.0,23.326,23.306,17.0]
[1673847088506,20.0,23.325,23.306,17.0]
[1673847089144,17.0,23.327,23.306,17.0]
[1673847089568,20.0,23.325,23.306,17.0]
[1673847091373,20.0,23.326,23.306,17.0]
[1673847091576,20.0,23.327,23.306,17.0]
[1673847092077,20.0,23.326,23.306,17.0]
[1673847093238,20.0,23.326,23.304,17.0]
[1673847094070,20.0,23.326,23.303,17.0]
[1673847096091,20.0,23.327,23.304,20.0]
[1673847096291,20.0,23.329,23.31,12.49]
[1673847096714,20.0,23.329,23.311,17.0]
[1673847101756,17.0,23.328,23.302,109.5444]
[1673847101961,20.0,23.326,23.302,109.5444]
[1673847102171,37.0,23.325,23.302,109.5444]
[1673847102816,20.0,23.324,23.302,109.5444]
[1673847103032,20.0,23.322,23.302,109.5444]
[1673847103218,20.0,23.321,23.303,17.0]
[1673847103967,20.0,23.319,23.302,109.5444]
[1673847104174,20.0,23.318,23.302,109.5444]
[1673847105862,20.0,23.319,23.302,109.5444]
[1673847106176,17.0,23.318,23.302,109.5444]
[1673847106812,20.0,23.319,23.302,109.5444]
[1673847107121,20.0,23.321,23.303,17.0]
[1673847107329,17.0,23.32,23.303,17.0]
[1673847107548,20.0,23.319,23.302,109.5444]
[1673847107758,20.0,23.318,23.302,109.5444]
[1673847109006,20.0,23.318,23.29,12.48]
[1673847109219,64.06415818,23.317,23.29,12.48]
[1673847109431,20.0,23.316,23.29,12.48]
[1673847109656,12.41,23.31,23.29,12.48]
[1673847109856,20.0,23.308,23.29,12.48]
[1673847110072,133.0677,23.309,23.29,12.48]
[1673847110916,20.0,23.308,23.29,12.48]
[1673847111328,20.0,23.307,23.284,117.7138]
[1673847111539,20.0,23.307,23.285,20.0]
[1673847112167,17.0,23.306,23.285,20.0]
[1673847112385,20.0,23.305,23.285,20.0]
[1673847113341,17.0,23.304,23.284,137.7138]
[1673847113526,20.0,23.303,23.284,137.7138]
[1673847113737,20.0,23.303,23.285,20.0]
[1673847114806,20.0,23.303,23.287,20.0]
[1673847114998,20.0,23.308,23.288,17.0]
[1673847115208,17.0,23.307,23.288,17.0]
[1673847115423,20.0,23.308,23.29,12.49]
[1673847115651,20.0,23.308,23.291,17.0]
[1673847118685,20.0,23.307,23.291,17.0]
[1673847118994,20.0,23.307,23.284,117.7138]
[1673847119200,20.0,23.305,23.284,117.7138]
[1673847119415,17.0,23.304,23.284,117.7138]
[1673847119844,20.0,23.302,23.284,117.7138]
[1673847120057,20.0,23.301,23.284,117.7138]
[1673847120477,12.41,23.3,23.28,12.47]
[1673847120694,20.0,23.299,23.28,12.47]
[1673847121950,20.0,23.299,23.281,17.0]
[1673847122374,20.0,23.299,23.28,12.47]
[1673847123742,20.0,23.299,23.281,17.0]
[1673847124466,20.0,23.298,23.281,17.0]
[1673847124681,20.0,23.299,23.281,17.0]
[1673847127949,20.0,23.299,23.282,20.0]
[1673847128272,20.0,23.299,23.283,17.0]
[1673847131646,12.49,23.31,23.285,20.0]
[1673847131843,12.49,23.31,23.286,17.0]
[1673847132057,12.49,23.31,23.288,20.0]
[1673847132252,20.0,23.308,23.29,20.0]
[1673847132462,20.0,23.308,23.291,17.0]
[1673847132674,20.0,23.308,23.292,20.0]
[1673847132885,20.0,23.308,23.293,17.0]
[1673847133304,12.49,23.31,23.293,17.0]
[1673847134682,20.0,23.308,23.293,17.0]
[1673847136473,20.0,23.308,23.29,32.49]
[1673847136667,20.0,23.308,23.291,17.0]
[1673847139012,17.0,23.307,23.287,111.6377]
[1673847139212,17.0,23.307,23.288,37.0]
[1673847139619,20.0,23.308,23.288,37.0]
[1673847141530,20.0,23.308,23.287,111.6377]
[1673847141715,20.0,23.306,23.287,111.6377]
[1673847141925,17.0,23.305,23.287,111.6377]
[1673847142244,20.0,23.304,23.287,111.6377]
[1673847142459,12.37,23.3,23.287,111.6377]
[1673847142863,20.0,23.299,23.287,111.6377]
[1673847146456,20.0,23.299,23.289,20.0]
[1673847146665,20.0,23.299,23.29,17.0]
[1673847148979,20.0,23.307,23.29,17.0]
[1673847149385,20.0,23.308,23.29,17.0]
[1673847149609,20.0,23.307,23.287,111.6377]
[1673847149808,20.0,23.307,23.288,17.0]
[1673847150142,20.0,23.305,23.288,17.0]
[1673847150334,20.0,23.304,23.288,17.0]
[1673847150972,20.0,23.304,23.287,111.6377]
[1673847151379,20.0,23.304,23.289,20.0]
[1673847151610,20.0,23.306,23.289,20.0]
[1673847152443,40.0,23.307,23.289,20.0]
[1673847152645,47.06415818,23.305,23.289,20.0]
[1673847152847,20.0,23.304,23.289,20.0]
[1673847153080,20.0,23.304,23.287,111.6377]
[1673847153291,67.06415818,23.304,23.287,111.6377]
[1673847154240,20.0,23.304,23.287,111.6377]
[1673847154453,20.0,23.305,23.287,111.6377]
[1673847154638,17.0,23.304,23.287,111.6377]
[1673847154853,20.0,23.303,23.287,111.6377]
[1673847156445,20.0,23.307,23.288,20.0]
[1673847156760,17.0,23.306,23.288,20.0]
[1673847156952,20.0,23.305,23.288,20.0]
[1673847157576,20.0,23.306,23.288,20.0]
[1673847157822,17.0,23.305,23.288,20.0]
[1673847158018,20.0,23.304,23.288,20.0]
[1673847158443,20.0,23.304,23.287,111.6377]
[1673847159804,17.0,23.303,23.287,111.6377]
[1673847160016,20.0,23.302,23.287,111.6377]
[1673847160332,20.0,23.302,23.288,37.0]
[1673847160541,20.0,23.307,23.288,37.0]
[1673847160755,17.0,23.306,23.288,37.0]
[1673847160964,20.0,23.305,23.288,37.0]
[1673847161366,20.0,23.305,23.288,17.0]
[1673847161605,20.0,23.306,23.287,111.6377]
[1673847161786,20.0,23.304,23.287,111.6377]
[1673847162219,20.0,23.303,23.287,111.6377]
[1673847162736,20.0,23.305,23.288,17.0]
[1673847164102,20.0,23.306,23.288,17.0]
[1673847164439,20.0,23.307,23.288,17.0]
[1673847164858,17.0,23.306,23.288,37.0]
[1673847165067,20.0,23.305,23.288,37.0]
[1673847165284,20.0,23.307,23.288,37.0]
[1673847165469,20.0,23.307,23.28,12.47]
[1673847165681,12.37,23.3,23.28,113.0427]
[1673847166011,20.0,23.299,23.28,113.0427]
[1673847166203,20.0,23.298,23.28,113.0427]
[1673847166414,20.0,23.296,23.28,113.0427]
[1673847167896,17.0,23.297,23.28,113.0427]
[1673847168216,65.63510149,23.297,23.28,113.0427]
[1673847168432,114.0345,23.296,23.28,113.0427]
[1673847169274,48.63510149,23.295,23.28,113.0427]
[1673847170318,20.0,23.293,23.28,113.0427]
[1673847170633,20.0,23.294,23.28,113.0427]
[1673847171046,20.0,23.295,23.28,113.0427]
[1673847172318,17.0,23.294,23.28,113.0427]
[1673847172510,20.0,23.293,23.28,113.0427]
[1673847174499,20.0,23.293,23.28,112.97390877]
[1673847174715,114.0345,23.296,23.281,17.0]
[1673847175156,114.0345,23.296,23.282,20.0]
[1673847175356,114.0345,23.296,23.283,17.0]
[1673847175574,114.0345,23.296,23.284,20.0]
[1673847175884,113.0677,23.309,23.285,17.0]
[1673847176285,20.0,23.304,23.285,17.0]
[1673847177127,20.0,23.304,23.286,20.0]
[1673847177349,20.0,23.304,23.287,17.0]
[1673847179882,20.0,23.304,23.286,20.0]
[1673847181786,17.0,23.303,23.286,20.0]
[1673847182002,20.0,23.302,23.286,20.0]
[1673847182621,20.0,23.302,23.282,20.0]
[1673847182622,12.49,23.3,23.26,50.02]
[1673847182941,20.0,23.299,23.27,112.546]
[1673847183147,20.0,23.298,23.27,112.546]
[1673847183546,20.0,23.299,23.27,112.546]
[1673847184095,20.0,23.299,23.281,20.0]
[1673847184288,27.26314287,23.304,23.29,12.48]
[1673847184499,20.0,23.318,23.29,12.48]
[1673847184500,138.407,23.318,23.29,12.48]
[1673847184704,20.0,23.308,23.291,17.0]
[1673847185050,20.0,23.308,23.292,20.0]
[1673847185356,20.0,23.308,23.293,17.0]
[1673847185556,20.0,23.308,23.3,12.48]
[1673847185882,118.7244,23.322,23.301,17.0]
[1673847186200,118.7244,23.322,23.302,20.0]
[1673847186390,118.7244,23.322,23.303,17.0]
[1673847186606,118.7244,23.322,23.304,20.0]
[1673847186816,118.7244,23.322,23.305,17.0]
[1673847187228,39.75314287,23.33,23.305,17.0]
[1673847187662,12.49,23.33,23.305,17.0]
[1673847188706,20.0,23.329,23.305,17.0]
[1673847190821,20.0,23.329,23.31,12.49]
[1673847191035,20.0,23.329,23.311,17.0]
[1673847193341,44.26314287,23.328,23.31,12.49]
[1673847193560,20.0,23.326,23.31,12.49]
[1673847193769,20.0,23.325,23.304,20.0]
[1673847193985,20.0,23.325,23.305,17.0]
[1673847194717,20.0,23.325,23.302,20.0]
[1673847194909,20.0,23.323,23.3,12.48]
[1673847195121,130.0968,23.322,23.3,12.48]
[1673847195327,20.0,23.321,23.3,12.48]
[1673847195566,20.0,23.32,23.3,12.48]
[1673847196180,20.0,23.321,23.3,12.48]
[1673847196391,20.0,23.321,23.302,17.0]
[1673847200712,20.0,23.321,23.3,12.48]
[1673847202710,20.0,23.321,23.301,17.0]
[1673847203683,20.0,23.321,23.302,20.0]
[1673847203908,20.0,23.321,23.304,20.0]
[1673847204210,20.0,23.321,23.305,17.0]
[1673847205773,20.0,23.338,23.31,12.49]
[1673847205987,20.0,23.333,23.311,17.0]
[1673847213345,20.0,23.334,23.311,17.0]
[1673847213543,20.0,23.334,23.312,20.0]
[1673847213758,20.0,23.334,23.313,17.0]
[1673847214281,111.0573,23.339,23.32,12.49]
[1673847214495,111.0573,23.339,23.321,17.0]
[1673847215451,109.0302,23.348,23.321,17.0]
[1673847215665,20.0,23.345,23.321,17.0]
[1673847215983,20.0,23.343,23.321,17.0]
[1673847216196,20.0,23.342,23.321,17.0]
[1673847216385,20.0,23.342,23.321,133.9158]
[1673847217029,20.0,23.342,23.322,20.0]
[1673847217337,20.0,23.342,23.323,17.0]
[1673847217746,20.0,23.342,23.321,116.9158]
[1673847217955,12.4,23.34,23.315,20.0]
[1673847218194,57.0,23.339,23.315,116.8773]
[1673847218716,20.0,23.338,23.315,116.8773]
[1673847219027,20.0,23.336,23.315,116.8773]
[1673847219225,139.8479,23.335,23.316,17.0]
[1673847219646,20.0,23.334,23.316,17.0]
[1673847222172,17.0,23.333,23.315,116.8773]
[1673847222376,20.0,23.329,23.315,116.8773]
[1673847222586,20.0,23.328,23.315,116.8773]
[1673847222805,20.0,23.328,23.31,12.49]
[1673847223645,20.0,23.328,23.311,17.0]
[1673847224162,20.0,23.329,23.311,17.0]
[1673847225738,20.0,23.329,23.31,12.49]
[1673847225948,20.0,23.328,23.31,12.49]
[1673847226478,20.0,23.329,23.31,12.49]
[1673847227109,20.0,23.329,23.311,17.0]
[1673847227448,20.0,23.329,23.31,12.49]
[1673847227972,20.0,23.328,23.31,12.49]
[1673847229852,20.0,23.328,23.311,17.0]
[1673847230169,20.0,23.329,23.311,17.0]
[1673847230494,20.0,23.328,23.311,17.0]
[1673847231420,20.0,23.328,23.307,110.1326]
[1673847231637,17.0,23.327,23.3,12.48]
[1673847231852,20.0,23.325,23.301,111.9296]
[1673847232046,37.0,23.324,23.301,111.9296]
[1673847232375,20.0,23.319,23.3,12.48]
[1673847232597,20.0,23.318,23.3,12.48]
[1673847233003,20.0,23.317,23.3,12.48]
[1673847233630,20.0,23.317,23.295,111.9296]
[1673847233845,20.0,23.316,23.296,17.0]
[1673847234046,20.0,23.315,23.296,17.0]
[1673847234257,20.0,23.314,23.296,17.0]
[1673847234889,20.0,23.314,23.296,37.0]
[1673847235324,20.0,23.316,23.296,37.0]
[1673847235511,47.26314287,23.334,23.3,12.49]
[1673847235725,20.0,23.319,23.301,17.0]
[1673847237341,20.0,23.318,23.301,17.0]
[1673847238062,40.0,23.319,23.301,17.0]
[1673847238491,20.0,23.319,23.301,17.0]
[1673847239113,20.0,23.319,23.3,12.49]
[1673847239324,37.0,23.318,23.29,12.49]
[1673847239551,20.0,23.317,23.29,12.49]
[1673847239747,20.0,23.316,23.29,12.49]
[1673847240583,20.0,23.316,23.296,37.0]
[1673847240798,20.0,23.316,23.29,12.49]
[1673847242169,20.0,23.316,23.296,17.0]
[1673847242601,20.0,23.317,23.296,17.0]
[1673847243419,12.4,23.32,23.297,20.0]
[1673847243746,12.4,23.32,23.299,20.0]
[1673847243957,12.4,23.32,23.3,17.0]
[1673847246376,20.0,23.319,23.3,17.0]
[1673847247435,20.0,23.318,23.3,17.0]
[1673847247625,20.0,23.318,23.298,17.0]
[1673847247835,20.0,23.318,23.297,17.0]
[1673847248056,20.0,23.318,23.297,37.0]
[1673847249860,20.0,23.319,23.3,12.43]
[1673847250077,20.0,23.319,23.301,17.0]
[1673847250389,20.0,23.321,23.302,20.0]
[1673847250594,20.0,23.321,23.303,17.0]
[1673847256800,20.0,23.32,23.302,17.0]
[1673847256990,20.0,23.319,23.301,17.0]
[1673847258377,20.0,23.321,23.301,17.0]
[1673847259015,20.0,23.321,23.302,20.0]
[1673847259321,20.0,23.321,23.303,17.0]
[1673847261093,20.0,23.321,23.304,20.0]
[1673847261305,20.0,23.321,23.305,17.0]
[1673847261953,12.49,23.33,23.306,20.0]
[1673847262165,12.49,23.33,23.307,17.0]
[1673847262357,12.49,23.33,23.308,20.0]
[1673847262570,12.49,23.33,23.31,20.0]
[1673847263002,12.49,23.33,23.311,17.0]
[1673847264477,20.0,23.329,23.311,17.0]
[1673847264882,38.38763482,23.338,23.311,17.0]
[1673847265090,12.4,23.34,23.313,20.0]
[1673847265302,12.4,23.34,23.314,37.0]
[1673847265511,108.8502,23.347,23.32,12.49]
[1673847265724,108.8502,23.347,23.321,17.0]
[1673847266053,20.0,23.346,23.322,20.0]
[1673847266266,20.0,23.346,23.323,17.0]
[1673847266462,20.0,23.346,23.324,20.0]
[1673847266689,20.0,23.346,23.325,17.0]
[1673847267004,20.0,23.345,23.325,17.0]
[1673847267312,20.0,23.344,23.325,17.0]
[1673847268156,20.0,23.346,23.325,17.0]
[1673847268337,108.8502,23.347,23.325,17.0]
[1673847268552,109.0302,23.348,23.326,20.0]
[1673847268756,109.0302,23.348,23.327,17.0]
[1673847268982,20.0,23.347,23.327,17.0]
[1673847270025,109.0302,23.348,23.327,17.0]
[1673847270235,109.0302,23.348,23.325,17.0]
[1673847271824,20.0,23.347,23.325,17.0]
[1673847276975,20.0,23.347,23.326,20.0]
[1673847277188,20.0,23.347,23.327,17.0]
[1673847277602,20.0,23.347,23.33,12.48]
[1673847277812,109.0302,23.348,23.331,17.0]
[1673847282567,109.0302,23.348,23.332,20.0]
[1673847282778,109.0302,23.348,23.333,17.0]
[1673847282990,109.0302,23.348,23.33,12.48]
[1673847283203,20.0,23.347,23.33,12.48]
[1673847283387,109.0302,23.348,23.33,12.48]
[1673847285509,109.0302,23.348,23.332,20.0]
[1673847285708,109.0302,23.348,23.333,17.0]
[1673847286537,12.5,23.36,23.333,17.0]
[1673847286749,12.49,23.37,23.34,12.43]
[1673847287071,38.38763482,23.368,23.341,17.0]
[1673847287939,20.0,23.36,23.341,17.0]
[1673847288974,32.41,23.36,23.341,17.0]
[1673847290119,20.0,23.359,23.341,17.0]
[1673847290331,20.0,23.358,23.341,17.0]
[1673847290541,32.41,23.36,23.341,17.0]
[1673847293902,20.0,23.359,23.341,17.0]
[1673847294313,20.0,23.357,23.341,17.0]
[1673847294735,20.0,23.359,23.341,17.0]
[1673847294965,20.0,23.358,23.341,17.0]
[1673847295680,20.0,23.359,23.341,17.0]
[1673847301584,20.0,23.359,23.34,12.43]
[1673847302847,20.0,23.359,23.341,17.0]
[1673847303466,20.0,23.36,23.341,17.0]
[1673847311387,20.0,23.36,23.342,23.71417]
[1673847311701,12.41,23.37,23.344,20.0]
[1673847311899,12.41,23.37,23.346,20.0]
[1673847312315,12.41,23.37,23.347,17.0]
[1673847312525,12.41,23.37,23.348,20.0]
[1673847312740,12.41,23.37,23.35,12.43]
[1673847312946,12.41,23.37,23.352,20.0]
[1673847313369,12.41,23.37,23.353,17.0]
[1673847314541,20.0,23.369,23.354,20.0]
[1673847314856,20.0,23.369,23.355,17.0]
[1673847315258,20.0,23.372,23.355,17.0]
[1673847315490,20.0,23.373,23.355,17.0]
[1673847315678,20.0,23.373,23.356,20.0]
[1673847315903,20.0,23.373,23.357,17.0]
[1673847316440,115.839,23.374,23.36,12.49]
[1673847316620,119.8732,23.383,23.361,37.0]
[1673847316836,20.0,23.382,23.361,156.4552]
[1673847319786,20.0,23.382,23.361,156.38992632]
[1673847320010,20.0,23.386,23.361,156.38992632]
[1673847320955,20.0,23.386,23.361,139.38992632]
[1673847321162,17.0,23.385,23.361,139.38992632]
[1673847321377,20.0,23.384,23.361,139.38992632]
[1673847322212,20.0,23.386,23.361,139.38992632]
[1673847322832,17.0,23.385,23.362,17.0]
[1673847323048,20.0,23.384,23.362,17.0]
[1673847323251,20.0,23.386,23.362,17.0]
[1673847323479,17.0,23.385,23.363,20.0]
[1673847323797,20.0,23.384,23.364,17.0]
[1673847327576,20.0,23.386,23.364,17.0]
[1673847327768,12.37,23.38,23.352,20.0]
[1673847327974,12.37,23.38,23.35,12.43]
[1673847327975,12.49,23.37,23.35,12.43]
[1673847328184,20.0,23.369,23.35,12.43]
[1673847330610,20.0,23.369,23.351,17.0]
[1673847330942,20.0,23.369,23.352,20.0]
[1673847331253,20.0,23.369,23.353,17.0]
[1673847331461,20.0,23.373,23.354,20.0]
[1673847331678,20.0,23.373,23.356,20.0]
[1673847331999,20.0,23.373,23.357,17.0]
[1673847334403,20.0,23.373,23.355,17.0]
[1673847336918,20.0,23.373,23.353,17.0]
[1673847336919,20.0,23.372,23.353,17.0]
[1673847337126,20.0,23.371,23.348,228.3611]
[1673847337340,20.0,23.37,23.348,228.3611]
[1673847337548,20.0,23.369,23.348,228.3611]
[1673847337872,20.0,23.369,23.348,114.78]
[1673847337873,109.94404709,23.369,23.348,114.78]
[1673847338078,66.83653075,23.368,23.348,114.78]
[1673847338296,109.94404709,23.368,23.348,114.78]
[1673847338484,12.37,23.36,23.342,20.0]
[1673847338696,20.0,23.359,23.335,20.0]
[1673847338924,115.05738042,23.359,23.333,112.0092]
[1673847339136,112.05738042,23.358,23.333,112.0092]
[1673847339333,20.0,23.357,23.333,112.0092]
[1673847339548,164.68213885,23.357,23.334,20.0]
[1673847339759,49.62475843,23.357,23.334,20.0]
[1673847339964,49.62475843,23.357,23.34,12.48]
[1673847339965,20.0,23.357,23.34,12.48]
[1673847340401,20.0,23.36,23.34,12.48]
[1673847341352,20.0,23.36,23.341,17.0]
[1673847341541,20.0,23.36,23.342,20.0]
[1673847341753,20.0,23.36,23.343,17.0]
[1673847349248,12.49,23.37,23.35,12.49]
[1673847349441,20.0,23.369,23.351,17.0]
[1673847351005,20.0,23.369,23.344,135.8643]
[1673847351224,20.0,23.368,23.344,135.8643]
[1673847351447,20.0,23.367,23.344,135.8643]
[1673847352897,20.0,23.367,23.346,20.0]
[1673847353124,20.0,23.367,23.347,17.0]
[1673847353317,17.0,23.366,23.344,115.8643]
[1673847353526,12.37,23.36,23.344,115.8643]
[1673847353741,20.0,23.359,23.334,20.0]
[1673847353968,12.41,23.35,23.33,12.49]
[1673847354158,20.0,23.348,23.33,12.49]
[1673847354700,108.2587,23.348,23.33,12.49]
[1673847355962,20.0,23.349,23.33,12.49]
[1673847356174,20.0,23.349,23.331,20.0]
[1673847356500,20.0,23.356,23.332,17.0]
[1673847356695,20.0,23.356,23.333,20.0]
[1673847356914,20.0,23.356,23.334,17.0]
[1673847358698,20.0,23.356,23.335,20.0]
[1673847358896,20.0,23.356,23.336,17.0]
[1673847361737,12.37,23.36,23.336,17.0]
[1673847362076,20.0,23.359,23.341,20.0]
[1673847362263,20.0,23.36,23.342,17.0]
[1673847363531,20.0,23.36,23.343,20.0]
[1673847363858,20.0,23.36,23.344,17.0]
[1673847367950,20.0,23.36,23.343,20.0]